bitfinex-derivatives/quotes_BNBF0:USTF0_20251002
["timestamp","ask_amount","ask_price","bid_price","bid_amount"]
[1759371233489,0.86783085,1035.3,1033.4,0.63449945]
[1759371233690,0.86783085,1035.3,1033.5,0.63449945]
[1759371234391,0.86783085,1035.2,1033.5,0.63449945]
[1759371236289,0.86783085,1035.1,1033.5,0.63449945]
[1759371236489,0.86783085,1035.4,1033.4,0.63449945]
[1759371236988,0.86783085,1035.3,1033.3,0.63449945]
[1759371237488,0.86783085,1035.2,1033.3,0.63449945]
[1759371237690,0.86783085,1034.9,1033.4,0.63449945]
[1759371237892,0.86783085,1034.8,1033.3,0.63449945]
[1759371238891,0.86783085,1035.0,1033.1,0.63449945]
[1759371239291,0.86783085,1034.7,1033.2,0.63449945]
[1759371239790,0.86783085,1034.6,1033.1,0.63449945]
[1759371239994,0.86783085,1034.7,1033.1,0.63449945]
[1759371240388,0.86783085,1034.7,1033.2,0.63449945]
[1759371241394,0.86783085,1034.8,1033.2,0.63449945]
[1759371242193,0.86783085,1034.7,1033.3,0.63449945]
[1759371242391,0.86783085,1034.8,1033.3,0.63449945]
[1759371242590,0.86783085,1034.7,1033.2,0.63449945]
[1759371244093,0.86783085,1034.5,1033.1,0.63449945]
[1759371244697,0.86783085,1034.4,1033.1,0.63449945]
[1759371245493,0.86783085,1034.5,1033.0,0.63449945]
[1759371246193,0.86783085,1034.4,1033.1,0.63449945]
[1759371246493,0.86783085,1034.5,1033.0,0.63449945]
[1759371246697,0.86783085,1034.4,1033.0,0.63449945]
[1759371253401,0.86783085,1034.4,1032.9,0.63449945]
[1759371256499,0.86783085,1034.5,1032.9,0.63449945]
[1759371256800,0.86783085,1034.4,1032.9,0.63449945]
[1759371257500,0.86783085,1034.5,1032.9,0.63449945]
[1759371259706,0.86783085,1034.5,1032.8,0.63449945]
[1759371259908,0.86783085,1034.5,1032.9,0.63449945]
[1759371260304,0.86783085,1034.6,1032.8,0.63449945]
[1759371260604,0.86783085,1034.5,1032.7,0.63449945]
[1759371261508,0.86783085,1034.5,1032.6,8.07516316]
[1759371261709,0.86783085,1034.5,1032.7,0.63449945]
[1759371262309,0.86783085,1034.4,1032.6,8.07516316]
[1759371262806,0.86783085,1034.3,1032.6,8.07516316]
[1759371265614,0.86783085,1034.2,1032.6,7.44066371]
[1759371265814,0.86783085,1034.3,1032.6,7.44066371]
[1759371268521,0.86783085,1034.4,1032.6,7.44066371]
[1759371268820,0.86783085,1034.2,1032.6,7.44066371]
[1759371269418,0.86783085,1034.3,1032.6,7.44066371]
[1759371269617,0.86783085,1034.2,1032.6,7.44066371]
[1759371271225,0.86783085,1034.4,1032.6,7.44066371]
[1759371276325,0.86783085,1034.7,1032.6,7.44066371]
[1759371276531,0.86783085,1034.9,1032.7,0.63449945]
[1759371276723,0.86783085,1034.9,1032.6,8.07516316]
[1759371277427,0.86783085,1034.8,1032.6,8.07516316]
[1759371277725,0.86783085,1034.9,1032.6,8.07516316]
[1759371278125,0.86783085,1034.9,1032.7,0.63449945]
[1759371279328,0.86783085,1034.8,1032.7,0.63449945]
[1759371279526,0.86783085,1034.8,1032.6,8.29902179]
[1759371279527,0.86783085,1034.8,1032.8,0.63449945]
[1759371279930,0.86783085,1034.7,1032.7,0.63449945]
[1759371280928,0.86783085,1034.7,1032.8,0.63449945]
[1759371281128,0.86783085,1034.8,1032.8,0.63449945]
[1759371282134,0.86783085,1034.7,1032.8,0.63449945]
[1759371282633,0.86783085,1034.8,1032.8,0.63449945]
[1759371283934,0.86783085,1034.7,1032.8,0.63449945]
[1759371284135,0.86783085,1034.8,1032.9,0.63449945]
[1759371284331,0.86783085,1034.7,1032.9,0.63449945]
[1759371285536,0.86783085,1034.8,1032.9,0.63449945]
[1759371286236,0.86783085,1034.7,1032.9,0.63449945]
[1759371286632,0.86783085,1034.8,1032.9,0.63449945]
[1759371287031,0.86783085,1034.8,1033.0,0.63449945]
[1759371287634,0.86783085,1034.9,1033.0,0.63449945]
[1759371288437,0.86783085,1034.9,1033.1,0.63449945]
[1759371288635,0.86783085,1035.0,1033.1,0.63449945]
[1759371289035,0.86783085,1035.0,1033.2,0.63449945]
[1759371289334,0.86783085,1035.1,1033.2,0.63449945]
[1759371290838,0.86783085,1035.0,1033.2,0.63449945]
[1759371291637,0.86783085,1035.0,1033.3,0.63449945]
[1759371292135,0.86783085,1035.0,1033.2,0.63449945]
[1759371292438,0.86783085,1035.0,1033.3,0.63449945]
[1759371294642,0.86783085,1035.2,1033.4,0.63449945]
[1759371297442,0.86783085,1035.3,1033.6,0.63449945]
[1759371298438,0.86783085,1035.3,1033.5,0.63449945]
[1759371299840,0.86783085,1035.2,1033.5,0.63449945]
[1759371300243,0.86783085,1035.2,1033.4,0.63449945]
[1759371300441,0.86783085,1035.2,1033.2,0.63449945]
[1759371300641,0.86783085,1035.1,1033.2,0.63449945]
[1759371302344,0.86783085,1035.0,1033.1,0.63449945]
[1759371303042,0.86783085,1035.0,1033.2,0.63449945]
[1759371303446,0.86783085,1035.1,1033.3,0.63449945]
[1759371303748,0.86783085,1035.2,1033.3,0.63449945]
[1759371304042,0.86783085,1035.2,1033.4,0.63449945]
[1759371304544,0.86783085,1035.3,1033.4,0.63449945]
[1759371304747,0.86783085,1035.4,1033.5,0.63449945]
[1759371308651,0.86783085,1035.5,1033.5,0.63449945]
[1759371311549,0.86783085,1035.6,1033.4,0.63449945]
[1759371316454,0.86783085,1035.8,1033.4,0.63449945]
[1759371317151,0.86783085,1035.9,1033.4,0.63449945]
[1759371319057,0.86783085,1035.7,1033.5,0.63449945]
[1759371319257,0.86783085,1035.6,1033.4,0.63449945]
[1759371319457,0.86783085,1035.5,1033.3,0.63449945]
[1759371320156,0.86783085,1035.6,1033.4,0.63449945]
[1759371322258,0.86783085,1035.6,1033.3,0.63449945]
[1759371323253,0.86783085,1035.7,1033.3,0.63449945]
[1759371324455,0.86783085,1035.6,1033.2,0.63449945]
[1759371325361,1.28800432,1035.8,1033.2,0.63449945]
[1759371325362,0.86783085,1035.5,1033.2,0.63449945]
[1759371326158,0.86783085,1035.6,1033.2,0.63449945]
[1759371326360,0.86783085,1035.5,1033.2,0.63449945]
[1759371326958,0.86783085,1035.4,1033.2,0.63449945]
[1759371328358,0.86783085,1035.4,1033.3,0.63449945]
[1759371328864,0.86783085,1036.1,1033.2,0.63449945]
[1759371329064,0.86783085,1036.0,1033.4,0.63449945]
[1759371330060,0.86783085,1035.9,1033.4,0.63449945]
[1759371330763,0.86783085,1035.7,1033.5,0.63449945]
[1759371330964,0.86783085,1035.6,1033.6,0.63449945]
[1759371333562,0.86783085,1035.5,1033.7,0.63449945]
[1759371333964,0.86783085,1035.5,1033.6,0.63449945]
[1759371334361,0.86783085,1035.5,1033.7,0.63449945]
[1759371339065,0.86783085,1035.4,1033.7,0.63449945]
[1759371339268,0.86783085,1035.4,1033.6,0.63449945]
[1759371339466,0.86783085,1035.3,1033.6,0.63449945]
[1759371341372,0.86783085,1035.1,1033.5,0.63449945]
[1759371342376,0.86783085,1035.1,1033.6,0.63449945]
[1759371342672,0.86783085,1035.1,1033.6,7.28859332]
[1759371343375,0.86783085,1035.1,1033.6,7.92309277]
[1759371344278,0.86783085,1035.1,1033.6,0.63449945]
[1759371344681,0.86783085,1035.0,1033.6,0.63449945]
[1759371348482,0.86783085,1035.0,1033.7,0.63449945]
[1759371348785,0.86783085,1035.0,1033.7,7.94509619]
[1759371348985,0.86783085,1035.0,1033.7,7.31059674]
[1759371349386,0.86783085,1035.0,1033.7,7.94509619]
[1759371349988,0.86783085,1035.0,1033.7,7.31059674]
[1759371350289,0.86783085,1035.0,1033.7,7.94509619]
[1759371350991,0.86783085,1035.1,1033.9,0.63449945]
[1759371351387,0.86783085,1035.2,1033.9,0.63449945]
[1759371354790,0.86783085,1035.3,1033.9,0.63449945]
[1759371355793,0.86783085,1035.2,1033.9,0.63449945]
[1759371356093,0.86783085,1035.5,1033.9,0.63449945]
[1759371356294,0.86783085,1035.5,1034.0,0.63449945]
[1759371356489,0.86783085,1035.5,1034.2,0.63449945]
[1759371356790,0.86783085,1035.5,1034.1,0.63449945]
[1759371357094,0.86783085,1035.4,1034.1,0.63449945]
[1759371357292,0.86783085,1035.5,1034.1,0.63449945]
[1759371357889,0.86783085,1035.4,1034.1,0.63449945]
[1759371358290,0.86783085,1035.4,1034.0,0.63449945]
[1759371359295,0.86783085,1035.3,1033.9,0.63449945]
[1759371359494,0.86783085,1035.4,1033.9,0.63449945]
[1759371359694,0.16818704,1035.1,1033.9,0.63449945]
[1759371363400,0.86783085,1035.4,1034.0,0.63449945]
[1759371363597,0.16817484,1035.2,1034.0,0.63449945]
[1759371366396,0.16817484,1035.2,1033.9,0.63449945]
[1759371366901,0.16817484,1035.2,1034.0,0.63449945]
[1759371368199,0.16817484,1035.2,1033.8,0.85835808]
[1759371368200,0.16817484,1035.2,1034.1,0.63449945]
[1759371368502,0.16817484,1035.2,1034.0,0.63449945]
[1759371369406,0.16817484,1035.2,1034.1,0.63449945]
[1759371370306,0.16817484,1035.2,1034.0,0.63449945]
[1759371372210,0.86783085,1035.5,1034.0,0.63449945]
[1759371372506,0.16815209,1035.4,1034.1,0.63449945]
[1759371372709,0.16815209,1035.4,1034.2,0.63449945]
[1759371374006,0.16815209,1035.4,1034.3,0.63449945]
[1759371374206,0.86783085,1035.6,1034.3,0.63449945]
[1759371374408,1.03595126,1035.6,1034.3,0.63449945]
[1759371374611,0.16812041,1035.6,1034.3,0.63449945]
[1759371378312,0.16812041,1035.6,1034.2,0.63449945]
[1759371385912,0.16812041,1035.6,1034.1,0.63449945]
[1759371387112,0.16812041,1035.6,1034.2,0.63449945]
[1759371387617,0.16812041,1035.6,1034.1,0.63449945]
[1759371387817,0.16812041,1035.6,1034.0,0.63449945]
[1759371389820,0.16812041,1035.6,1033.9,0.63449945]
[1759371393322,0.16812041,1035.6,1033.7,8.16895482]
[1759371393323,1.03595126,1035.6,1033.8,0.63449945]
[1759371396626,0.16812041,1035.6,1033.7,7.94509619]
[1759371397127,0.16812041,1035.6,1033.8,0.63449945]
[1759371398725,0.16812041,1035.6,1034.0,0.63449945]
[1759371400029,1.03595126,1035.6,1034.0,0.63449945]
[1759371400227,0.16812041,1035.6,1034.0,0.63449945]
[1759371400426,0.16812041,1035.6,1034.1,0.63449945]
[1759371402434,0.16812041,1035.6,1034.2,0.63449945]
[1759371403235,0.16812041,1035.6,1033.7,7.31059674]
[1759371403236,0.16812041,1035.6,1034.3,0.63449945]
[1759371403836,0.16812041,1035.6,1034.4,0.63449945]
[1759371407136,0.86783085,1035.9,1034.4,0.63449945]
[1759371407939,0.86783085,1036.0,1034.5,0.63449945]
[1759371408537,0.86783085,1036.1,1034.6,0.63449945]
[1759371411441,0.16806357,1035.9,1034.6,0.63449945]
[1759371413642,0.16806357,1035.9,1034.5,0.63449945]
[1759371426853,0.16806357,1035.9,1034.4,0.63449945]
[1759371427753,0.16806357,1035.9,1034.0,1.28753712]
[1759371427754,0.16806357,1035.9,1034.1,0.63449945]
[1759371428054,0.16806357,1035.9,1033.9,0.63449945]
[1759371429353,0.16806357,1035.9,1033.8,0.63449945]
[1759371432053,0.16806357,1035.9,1033.9,0.63449945]
[1759371432756,0.16806357,1035.9,1034.0,0.63449945]
[1759371432957,1.03589442,1035.9,1034.1,0.63449945]
[1759371433158,0.16806357,1035.9,1034.2,0.63449945]
[1759371433355,0.16806357,1035.9,1034.3,0.63449945]
[1759371436960,0.16806357,1035.9,1034.4,0.63449945]
[1759371437157,0.16806357,1035.9,1034.5,0.63449945]
[1759371445171,0.16806357,1035.9,1034.3,0.63449945]
[1759371445466,0.16806357,1035.9,1034.2,0.63449945]
[1759371448775,0.16806357,1035.9,1034.1,0.63449945]
[1759371449073,0.86783085,1035.8,1034.0,0.63449945]
[1759371452579,0.86783085,1035.8,1033.7,8.16895482]
[1759371452580,0.86783085,1035.7,1033.9,0.63449945]
[1759371455184,0.86783085,1035.6,1033.8,0.63449945]
[1759371455380,0.86783085,1035.5,1033.8,0.63449945]
[1759371460586,0.86783085,1035.6,1033.7,7.94509619]
[1759371461286,0.86783085,1035.7,1033.7,7.94509619]
[1759371461985,0.86783085,1035.6,1033.7,7.94509619]
[1759371463189,0.86783085,1035.7,1033.7,7.94509619]
[1759371464388,0.86783085,1035.6,1033.7,7.94509619]
[1759371464788,0.86783085,1035.7,1033.7,7.94509619]
[1759371464990,0.86783085,1035.6,1033.7,7.94509619]
[1759371465689,0.86783085,1035.6,1033.7,7.31059674]
[1759371468899,0.86783085,1035.5,1033.7,7.94509619]
[1759371469392,0.86783085,1035.6,1033.7,7.94509619]
[1759371469602,0.86783085,1035.6,1033.7,0.63449945]
[1759371473097,0.86783085,1035.7,1033.7,0.63449945]
[1759371473495,1.03589442,1035.9,1033.8,0.63449945]
[1759371473702,1.03589442,1035.9,1033.8,8.14742319]
[1759371475996,0.86783085,1035.7,1033.8,8.14742319]
[1759371476196,1.03589442,1035.9,1034.0,0.63449945]
[1759371477201,0.86783085,1035.8,1034.0,0.63449945]
[1759371477397,1.03589442,1035.9,1034.0,0.63449945]
[1759371479199,0.86783085,1035.8,1034.0,0.63449945]
[1759371480398,1.03589442,1035.9,1033.9,0.63449945]
[1759371480897,1.03589442,1035.9,1034.0,0.63449945]
[1759371484004,1.03589442,1035.9,1033.9,0.63449945]
[1759371484202,0.86783085,1035.8,1033.9,0.63449945]
[1759371484898,0.86783085,1035.8,1034.0,0.63449945]
[1759371485305,1.03589442,1035.9,1034.0,0.63449945]
[1759371486000,0.86783085,1035.8,1034.0,0.63449945]
[1759371489204,0.86783085,1035.8,1033.9,0.63449945]
[1759371489605,0.86783085,1035.7,1033.8,8.14742319]
[1759371489804,0.86783085,1035.6,1033.8,8.14742319]
[1759371491008,0.16806357,1035.9,1034.0,0.63449945]
[1759371495212,1.03589442,1035.9,1034.0,0.63449945]
[1759371495508,0.16806357,1035.9,1033.9,0.63449945]
[1759371495912,0.16806357,1035.9,1034.0,0.63449945]
[1759371496209,0.16806357,1035.9,1033.9,0.63449945]
[1759371497211,0.16806357,1035.9,1034.0,0.63449945]
[1759371497715,0.16806357,1035.9,1033.9,0.63449945]
[1759371497910,1.03589442,1035.9,1034.0,0.63449945]
[1759371498326,0.86783085,1035.8,1033.9,0.63449945]
[1759371498817,0.86783085,1035.7,1033.9,0.63449945]
[1759371499212,0.86783085,1035.6,1033.8,8.14742319]
[1759371499715,0.86783085,1035.7,1033.8,8.14742319]
[1759371500318,0.86783085,1035.5,1034.0,0.63449945]
[1759371501212,0.86783085,1035.5,1034.1,0.63449945]
[1759371505318,0.86783085,1035.4,1034.2,0.63449945]
[1759371506317,0.86783085,1035.4,1034.1,0.63449945]
[1759371507021,0.86783085,1035.5,1034.1,0.63449945]
[1759371507320,0.86783085,1035.4,1034.1,0.63449945]
[1759371508021,0.86783085,1035.5,1034.1,0.63449945]
[1759371509720,0.86783085,1035.3,1034.0,0.63449945]
[1759371511522,0.86783085,1035.4,1034.0,0.63449945]
[1759371520431,0.86783085,1035.5,1034.0,0.63449945]
[1759371520728,0.86783085,1035.3,1034.0,0.63449945]
[1759371524539,0.86783085,1035.4,1034.0,0.63449945]
[1759371525140,0.16806357,1035.9,1033.8,7.51292374]
[1759371525141,0.86783085,1035.3,1033.9,0.63449945]
[1759371525444,0.86783085,1035.2,1033.9,0.63449945]
[1759371525938,0.86783085,1035.4,1033.8,7.51292374]
[1759371529945,0.86783085,1035.3,1033.8,7.51292374]
[1759371530444,1.28800432,1035.7,1033.8,7.51292374]
[1759371530445,0.86783085,1035.4,1033.8,7.51292374]
[1759371530945,0.86783085,1035.2,1033.8,7.51292374]
[1759371531141,0.86783085,1035.3,1033.8,7.51292374]
[1759371531545,0.86783085,1035.2,1033.8,7.51292374]
[1759371532442,0.86783085,1035.0,1033.8,7.51292374]
[1759371532647,0.86783085,1035.2,1033.8,7.51292374]
[1759371532943,0.86783085,1035.3,1033.8,7.51292374]
[1759371534549,0.86783085,1035.1,1033.8,7.51292374]
[1759371538048,0.86783085,1034.9,1033.8,7.51292374]
[1759371540448,0.86783085,1035.0,1033.8,7.51292374]
[1759371540652,0.86783085,1034.9,1033.8,7.51292374]
[1759371540849,0.86783085,1035.0,1033.8,7.51292374]
[1759371542950,0.86783085,1035.1,1033.8,7.51292374]
[1759371543150,0.86783085,1035.2,1033.8,7.51292374]
[1759371543462,0.86783085,1035.3,1033.8,7.51292374]
[1759371544853,0.86783085,1035.4,1033.8,7.51292374]
[1759371545250,0.86783085,1035.5,1033.8,7.51292374]
[1759371545453,0.86783085,1035.4,1033.8,7.51292374]
[1759371546052,0.86783085,1035.5,1033.9,0.641498]
[1759371546252,0.86783085,1035.6,1033.9,0.641498]
[1759371546552,0.86783085,1035.7,1033.8,8.15442174]
[1759371548055,1.03589442,1035.9,1033.8,8.15442174]
[1759371548455,0.16806357,1035.9,1033.8,8.15442174]
[1759371549156,0.86783085,1035.6,1034.0,0.641498]
[1759371549353,0.86783085,1035.7,1034.2,0.641498]
[1759371549556,0.86783085,1035.8,1034.2,0.641498]
[1759371550253,1.03589442,1035.9,1034.2,0.641498]
[1759371550457,1.03589442,1035.9,1034.3,0.641498]
[1759371550658,0.16806357,1035.9,1034.2,0.641498]
[1759371552254,0.16806357,1035.9,1034.3,0.641498]
[1759371552455,0.16806357,1035.9,1034.2,0.641498]
[1759371552859,0.16806357,1035.9,1034.3,0.641498]
[1759371553457,0.16806357,1035.9,1034.4,0.641498]
[1759371558357,0.16806357,1035.9,1034.3,0.641498]
[1759371560062,0.16806357,1035.9,1034.4,0.641498]
[1759371561057,0.16806357,1035.9,1034.3,0.641498]
[1759371565864,0.16806357,1035.9,1034.2,0.641498]
[1759371566067,0.16806357,1035.9,1034.3,0.641498]
[1759371566563,0.16806357,1035.9,1034.2,0.641498]
[1759371569270,0.16806357,1035.9,1034.1,0.641498]
[1759371569470,0.16806357,1035.9,1034.2,0.641498]
[1759371569966,0.16806357,1035.9,1034.1,0.641498]
[1759371571167,0.16806357,1035.9,1034.0,0.641498]
[1759371571365,0.16806357,1035.9,1033.8,8.15442174]
[1759371571570,0.16806357,1035.9,1033.8,7.51292374]
[1759371572070,0.16806357,1035.9,1033.8,8.15442174]
[1759371577768,0.16806357,1035.9,1033.9,0.641498]
[1759371578568,0.16806357,1035.9,1033.8,7.51292374]
[1759371578569,0.16806357,1035.9,1033.8,8.15442174]
[1759371578772,0.16806357,1035.9,1033.8,7.51292374]
[1759371587975,1.03589442,1035.9,1033.8,7.51292374]
[1759371588178,0.86783085,1035.8,1033.8,7.51292374]
[1759371588575,0.86783085,1035.7,1033.8,7.51292374]
[1759371589781,0.86783085,1035.8,1033.8,7.51292374]
[1759371594488,0.86783085,1035.8,1033.6,0.641498]
[1759371594985,0.86783085,1035.8,1033.5,0.641498]
[1759371595284,0.86783085,1035.8,1033.3,0.85835808]
[1759371595285,0.86783085,1035.8,1033.6,0.641498]
[1759371595586,0.86783085,1035.7,1033.6,7.95512066]
[1759371598886,0.86783085,1035.7,1033.6,0.641498]
[1759371599386,0.86783085,1035.7,1032.3,2.1458952]
[1759371599387,0.86783085,1035.7,1033.7,0.641498]
[1759371599590,0.86783085,1035.7,1033.7,8.05236526]
[1759371600690,0.86783085,1035.8,1033.7,8.05236526]
[1759371601395,0.86783085,1035.8,1033.8,0.641498]
[1759371603293,0.16806357,1035.9,1033.8,0.641498]
[1759371603294,0.86783085,1035.7,1033.8,0.641498]
[1759371603999,1.03589442,1035.9,1033.9,0.641498]
[1759371606596,1.03589442,1035.9,1034.0,0.641498]
[1759371606800,1.03589442,1035.9,1033.8,0.85835808]
[1759371606801,1.03589442,1035.9,1034.1,0.641498]
[1759371607102,0.16806357,1035.9,1034.2,0.641498]
[1759371607901,0.16806357,1035.9,1034.3,0.641498]
[1759371609205,0.16806357,1035.9,1034.4,0.641498]
[1759371612104,0.86783085,1036.2,1034.4,0.641498]
[1759371612307,0.16809199,1035.6,1034.1,0.641498]
[1759371612502,0.86783085,1036.1,1034.1,0.641498]
[1759371612802,0.16811472,1035.5,1034.1,0.641498]
[1759371613302,1.28800432,1036.4,1034.1,0.641498]
[1759371613303,0.16812122,1035.4,1034.1,0.641498]
[1759371618809,0.86783085,1035.9,1034.1,0.641498]
[1759371619109,0.16811391,1035.6,1034.1,0.641498]
[1759371626317,0.16811391,1035.6,1034.4,0.641498]
[1759371628716,0.16811391,1035.6,1034.3,0.641498]
[1759371629116,0.16811391,1035.6,1034.2,0.641498]
[1759371629615,0.16811391,1035.6,1034.1,0.641498]
[1759371629817,0.16811391,1035.6,1034.0,0.641498]
[1759371634623,1.03594476,1035.6,1034.0,0.641498]
[1759371646237,0.86783085,1035.5,1034.0,0.641498]
[1759371647333,1.03594476,1035.6,1034.0,0.641498]
[1759371649035,0.16811391,1035.6,1033.8,0.641498]
[1759371652542,0.16811391,1035.6,1033.9,0.641498]
[1759371652844,0.16811391,1035.6,1033.8,0.641498]
[1759371655344,0.16811391,1035.6,1033.9,0.641498]
[1759371656052,0.86783085,1035.3,1033.7,7.41086726]
[1759371656245,0.86783085,1035.4,1033.7,7.41086726]
[1759371656445,0.86783085,1035.0,1033.7,7.41086726]
[1759371656748,0.86783085,1034.9,1033.7,7.41086726]
[1759371657143,0.86783085,1035.0,1033.7,7.41086726]
[1759371657648,0.86783085,1035.0,1033.2,0.80976392]
[1759371657848,0.86783085,1034.8,1033.2,0.16826592]
[1759371658747,0.16811391,1035.6,1033.2,0.16826592]
[1759371658748,0.86783085,1034.9,1033.2,0.16826592]
[1759371662053,0.86783085,1035.0,1033.2,0.16826592]
[1759371663349,0.86783085,1035.1,1033.2,0.16826592]
[1759371665151,0.86783085,1035.0,1032.9,43.07536449]
[1759371665351,0.86783085,1035.1,1032.9,43.24367354]
[1759371665556,0.86783085,1035.1,1032.9,50.5170151]
[1759371666154,0.86783085,1034.8,1032.9,50.5170151]
[1759371666357,0.86783085,1034.9,1032.9,50.5170151]
[1759371667054,0.86783085,1034.9,1032.9,50.34870605]
[1759371667258,0.86783085,1034.6,1032.9,50.34870605]
[1759371667458,0.86783085,1034.5,1032.9,50.34870605]
[1759371667755,0.86783085,1034.4,1032.9,50.34870605]
[1759371668156,0.86783085,1034.5,1032.9,7.27334156]
[1759371670262,0.86783085,1034.6,1032.9,7.27334156]
[1759371670962,0.86783085,1034.7,1032.9,7.27334156]
[1759371671162,0.86783085,1034.8,1032.9,7.27334156]
[1759371672363,0.86783085,1034.9,1032.9,7.27334156]
[1759371672861,0.86783085,1034.8,1032.9,7.27334156]
[1759371673165,0.86783085,1034.9,1032.9,7.27334156]
[1759371675868,0.86783085,1034.8,1032.9,7.27334156]
[1759371677666,1.28800432,1035.0,1032.9,7.27334156]
[1759371677667,0.86783085,1034.9,1032.9,7.27334156]
[1759371679670,0.86783085,1035.0,1032.9,7.27334156]
[1759371680667,0.86783085,1034.8,1032.9,7.27334156]
[1759371681569,0.86783085,1034.9,1032.9,7.27334156]
[1759371688575,0.86783085,1035.0,1032.9,7.27334156]
[1759371691279,0.86783085,1034.9,1032.9,7.27334156]
[1759371698380,0.86783085,1034.8,1032.9,7.27334156]
[1759371700482,0.86783085,1034.9,1032.9,7.27334156]
[1759371701184,0.86783085,1034.8,1032.9,7.27334156]
[1759371702788,0.86783085,1034.9,1032.9,7.27334156]
[1759371703189,0.86783085,1034.8,1032.9,7.27334156]
[1759371703788,0.86783085,1034.9,1032.9,7.27334156]
[1759371703990,1.28800432,1035.1,1032.9,7.27334156]
[1759371703991,0.86783085,1034.8,1032.9,7.27334156]
[1759371704892,0.86783085,1034.7,1032.9,7.27334156]
[1759371707295,0.86783085,1034.6,1032.9,7.27334156]
[1759371707992,0.86783085,1034.8,1032.9,7.27334156]
[1759371711497,0.86783085,1034.7,1032.9,7.27334156]
[1759371711797,0.86783085,1034.5,1032.9,7.27334156]
[1759371711998,0.86783085,1034.4,1032.9,7.27334156]
[1759371714301,0.86783085,1034.3,1032.9,7.27334156]
[1759371716601,0.86783085,1034.3,1032.9,7.9076578]
[1759371717607,0.86783085,1034.3,1032.9,0.63431624]
[1759371718408,0.86783085,1034.3,1033.0,0.63431624]
[1759371720006,0.86783085,1034.6,1033.1,0.63431624]
[1759371720405,0.86783085,1034.7,1033.2,0.63431624]
[1759371720603,0.86783085,1034.6,1033.2,0.63431624]
[1759371721208,0.86783085,1034.9,1033.0,0.63431624]
[1759371721405,0.86783085,1034.7,1032.9,0.63431624]
[1759371722507,0.86783085,1034.7,1033.0,0.63431624]
[1759371725306,0.86783085,1034.9,1033.1,0.63431624]
[1759371725506,0.86783085,1034.7,1033.2,0.63431624]
[1759371727711,0.86783085,1034.6,1033.2,0.63431624]
[1759371729207,0.86783085,1034.5,1033.2,0.63431624]
[1759371732210,0.86783085,1034.7,1033.3,0.63431624]
[1759371732520,0.86783085,1034.9,1033.3,0.63431624]
[1759371732814,0.86783085,1034.9,1033.4,0.63431624]
[1759371733215,0.86783085,1035.0,1033.3,0.63431624]
[1759371733414,0.86783085,1034.9,1033.4,0.63431624]
[1759371734314,0.86783085,1034.9,1033.3,0.63431624]
[1759371734516,0.86783085,1034.9,1033.1,0.85835808]
[1759371734712,0.86783085,1034.9,1033.5,0.64105328]
[1759371734917,0.86783085,1034.9,1033.5,8.11710868]
[1759371735313,0.86783085,1035.0,1033.5,8.11710868]
[1759371736016,0.86783085,1034.9,1033.5,7.4760554]
[1759371743316,0.86783085,1035.0,1033.5,7.4760554]
[1759371749024,0.86783085,1034.9,1033.5,7.4760554]
[1759371749324,0.86783085,1035.0,1033.5,7.4760554]
[1759371751525,0.86783085,1035.1,1033.5,7.4760554]
[1759371757427,0.86783085,1035.0,1033.5,7.4760554]
[1759371757627,0.86783085,1034.8,1033.5,7.4760554]
[1759371757828,0.86783085,1034.7,1033.5,7.4760554]
[1759371762027,0.86783085,1034.6,1033.5,7.4760554]
[1759371765130,0.86783085,1034.7,1033.5,7.4760554]
[1759371765533,0.86783085,1034.8,1033.5,7.4760554]
[1759371766436,0.86783085,1034.7,1033.5,7.4760554]
[1759371778041,0.86783085,1034.6,1033.5,7.4760554]
[1759371783749,0.86783085,1034.5,1033.5,7.4760554]
[1759371784054,0.86783085,1034.4,1033.5,7.4760554]
[1759371785150,0.86783085,1034.4,1033.0,0.64105328]
[1759371785354,0.86783085,1034.4,1032.8,0.85835808]
[1759371785355,0.86783085,1034.4,1032.8,0.64105328]
[1759371785655,0.86783085,1034.4,1032.7,0.64105328]
[1759371786455,0.86783085,1034.3,1032.7,0.64105328]
[1759371786854,0.86783085,1034.3,1032.6,0.64105328]
[1759371787054,0.86783085,1034.0,1032.5,0.16837012]
[1759371787754,0.86783085,1034.1,1032.5,0.16837012]
[1759371787952,0.86783085,1034.1,1032.5,0.8094234]
[1759371788354,0.86783085,1034.1,1032.6,0.64105328]
[1759371789259,2.17133706,1035.1,1032.5,0.16837012]
[1759371789260,0.86783085,1034.2,1032.5,0.8094234]
[1759371789556,0.86783085,1034.1,1032.5,0.8094234]
[1759371789756,0.86783085,1034.2,1032.5,0.8094234]
[1759371791356,0.86783085,1034.2,1032.5,0.16837012]
[1759371791561,0.86783085,1034.2,1032.5,0.8094234]
[1759371792261,0.86783085,1034.2,1032.5,0.16837012]
[1759371792456,0.86783085,1034.1,1032.5,0.16837012]
[1759371793257,0.86783085,1034.0,1032.5,0.16837012]
[1759371793859,0.86783085,1034.1,1032.5,0.16837012]
[1759371794459,0.86783085,1034.3,1032.5,0.16837012]
[1759371794860,0.86783085,1034.2,1032.5,0.16837012]
[1759371799364,0.86783085,1034.3,1032.2,0.64105328]
[1759371799664,0.86783085,1034.0,1032.2,0.16843206]
[1759371799868,0.86783085,1034.1,1032.2,0.16843206]
[1759371801566,0.86783085,1034.0,1032.2,0.16843206]
[1759371803566,0.86783085,1034.1,1032.2,0.16843206]
[1759371807274,0.86783085,1034.0,1032.2,0.16843206]
[1759371807469,0.86783085,1034.1,1032.2,0.16843206]
[1759371813377,0.86783085,1034.0,1032.2,0.16843206]
[1759371815179,0.86783085,1034.1,1032.2,0.16843206]
[1759371816276,0.86783085,1034.0,1032.2,0.16843206]
[1759371817076,0.86783085,1034.1,1032.2,0.16843206]
[1759371817278,0.86783085,1034.0,1032.2,0.16843206]
[1759371818580,0.86783085,1034.3,1032.2,0.16843206]
[1759371818777,0.86783085,1034.4,1032.2,0.16843206]
[1759371819380,0.16841127,1033.9,1032.2,0.16843206]
[1759371826587,0.16841127,1033.9,1032.2,0.80948534]
[1759371826883,0.16841127,1033.9,1032.3,0.64105328]
[1759371827182,0.16841127,1033.9,1032.4,0.64105328]
[1759371829586,0.16841127,1033.9,1032.5,0.64105328]
[1759371832385,0.16841127,1033.9,1032.4,0.64105328]
[1759371832585,0.16841127,1033.9,1032.5,0.64105328]
[1759371832789,0.16841127,1033.9,1032.4,0.64105328]
[1759371838488,0.16841127,1033.9,1032.5,0.64105328]
[1759371839490,0.16841127,1033.9,1032.6,0.64105328]
[1759371841891,0.86783085,1034.4,1032.6,0.64105328]
[1759371842096,0.16836524,1034.1,1032.6,0.64105328]
[1759371842296,0.16836524,1034.1,1032.7,0.64105328]
[1759371843695,0.16836524,1034.1,1032.9,0.64105328]
[1759371843898,0.16836524,1034.1,1033.0,0.64105328]
[1759371845199,0.86783085,1034.4,1033.0,0.64105328]
[1759371845495,0.16831353,1034.4,1033.1,0.64105328]
[1759371846095,0.86783085,1034.8,1033.2,0.64105328]
[1759371846295,0.16828301,1034.6,1033.2,0.64105328]
[1759371846594,0.16828301,1034.6,1033.3,0.64105328]
[1759371847298,0.16828301,1034.6,1033.2,0.64105328]
[1759371847596,0.86783085,1034.9,1033.2,0.64105328]